Workbook

Sheet INDICE
B2: Link al catalogo: http://catalogo.siadsrl.net/
B3: SEDE LEGALE, AMMINISTRATIVA ED OPERATIVA: Via G. B. Vico, 7 – 71016 San Severo (FG) SEDE OPERATIVA: Viale A. Masini, 58 - 40126 Bologna
B4: Tel: +39 0882334890 fax 0882334892 www.siadsrl.net Presenti sul MEPA
B5: ATELIER CREATIVI Elenco completo prodotti
B6: Rev 1.0
B7: - I N D I C E -
B9: SIMULATORE COSTI | C9: Comodo simulatore che vi consentirà, una volta inserite le quantità in ciascuna scheda, di ottenere velocemente un elenco completo della soluzione con i relativi costi
B10: ARREDO PER TAPPETO DIGITALE
B11: ROBOTICA EDUCATIVA
B12: FABLAB
B13: ELETTRONICA EDUCATIVA
B14: STEM
B15: ICT PER IL TAPPETO DIGITALE (LIM, SCHERMI, PC, NOTEBOOK, ACCESS POINT, ECC)
B16: STORYTELLING
B17: ARTE E CREATIVITA' (LEGNO, CERAMICA, CUCINA)

Sheet SIMULATORE COSTI
H1: Questo simulatore rappresenta un comodo prospetto sintetico per verificare i costi del proprio Atelier. E' sufficiente inserire nelle varie aree dei prodotti le quantità desiderate e si otterrà il totale aggiornato della lista di apparecchiature, cliccando sul tasto a sinistra "APPLICA FILTRO SCELTE"
H2: Voci di Costo | I2: Percentuale | J2: Importo previsto
H3: A. Progettazione (max 2%) | I3: 0.02 | J3: =15000*I3 -> 300
H4: B. Spese organizzative e di gestione (max 2%) | I4: 0.02 | J4: =15000*I4 -> 300
H5: Totale Spese Generali | I5: =SUM(I3:I4) -> 0.04 | J5: =SUM(J3:J4) -> 600
H6: TOTALE FORNITURA C. Acquisti di beni e forniture (96%) | I6: 0.96 | J6: =E80 -> 0
H7: Controlli di I Livello in loco | J7: 0
H8: Totale Progetto | I8: =SUM(I5:I6) -> 1 | J8: =SUM(J5:J6) -> 600
A9: PROGETTO ATELIER CREATIVI Prezzi IVA 22% inclusa
A10: VOCI DI COSTO DELLA CONFIGURAZIONE
A11: Tipologia | B11: Descrizione | C11: Qtà | D11: Costo Unitario IVA inclusa | E11: Costo Totale IVA inclusa
A12: Arredo per Tappeto digitale | B12: Tavolo ribaltabile aggregabile dim 140x70x72. Struttura portante interamente in acciaio, su 4 ruote con freno. Piano spessore 25 mm con bordo in ABS 2 mm arrotondato su tutti gli angoli con raggio 45 mm. Prodotto italiano di azienda certificata ISO 9001:2008 | C12: ='ARREDO PER TAPPETO DIGITALE'!D6 -> 0 | D12: 403.82 | E12: =D12*C12 -> 0
A13: Arredo per Tappeto digitale | B13: Tavolo trapezoidale ribaltabile aggregabile dim 140x61x72. Struttura portante interamente in acciaio, su 4 ruote con freno. Piano spessore 25 mm con bordo in ABS 2 mm arrotondato su tutti gli angoli con raggio 45 mm. Prodotto italiano di azienda certificata ISO 9001:2008 | C13: ='ARREDO PER TAPPETO DIGITALE'!D7 -> 0 | D13: 427 | E13: =D13*C13 -> 0
A14: Arredo per Tappeto digitale | B14: Tavolo aggregabile a sezione a 6 curve combinabile, struttura colore RAL 9006 realizzata in tubolare Ø 60mm. La particolare forma progettata per essere combinata con altri tavoli del medesimo tipo, permette di creare in modo agevole gruppi con numero di partecipanti variabili, in linea con le esigenze didattiche. Il piano di lavoro spessore 20 mm è realizzato in melaminico antigraffio sagomato con spigoli arrotondati e bordato in ABS spessore 2 mm in linea con le normative vigenti in termini di sicurezza. Prodotto italiano di azienda certificata ISO 9001:2008 | C14: ='ARREDO PER TAPPETO DIGITALE'!D8 -> 0 | D14: 161.65 | E14: 0
A15: Arredo per Tappeto digitale | B15: Banchi modulari componibili per classe dinamica, struttura in metallo tubolare Ø 28mm con 2 ruote frontali piroettanti che consentono di spostare agevolmente il banco e permettere di creare agevolmente delle configurazioni d’aula, Piano di lavoro a forma trapezoidale in Melaminico antigraffio sagomato dimensione 98x45 cm, arrotondato risbordato in ABS. Piano disponibile in diversi colori. | C15: ='ARREDO PER TAPPETO DIGITALE'!D9 -> 0 | D15: 170.8 | E15: 0
A16: Arredo per Tappeto digitale | B16: Tavolo Postazione docente ad angolo dim. cm 180x80x72 + Angolo tondo 90° + 100x80x72 ca. Struttura portante interamente in acciaio | C16: ='ARREDO PER TAPPETO DIGITALE'!D10 -> 0 | D16: 517.28 | E16: =D16*C16 -> 0
A17: Arredo per Tappeto digitale | B17: Scrivania docente dim 180x80x72. Struttura portante interamente in acciaio. Piano spessore 25 mm con bordo in ABS 2 mm arrotondato su tutti gli angoli con raggio 45 mm | C17: ='ARREDO PER TAPPETO DIGITALE'!D11 -> 0 | D17: 517.28 | E17: =D17*C17 -> 0
A18: Arredo per Tappeto digitale | B18: Armadio metallico 120x45x200h cm con ante scorrevoli. | C18: ='ARREDO PER TAPPETO DIGITALE'!D16 -> 0 | D18: 222.04 | E18: 0
A19: Arredo per Tappeto digitale | B19: Isola di lavoro a 3 posti 120° completa di divisori e porta CPU sospesi, piano spessore 28mm, dotato di fianchi coperti. Canalizzazione a norma per impianti, gamba piena pennellata in fibra legnosa nobilitata melaminica. Elettrificazione con prese multistandard e foro passacavo sul piano di lavoro. Lunghezza minima 208 cm, larghezza minima 120 cm. | C19: ='ARREDO PER TAPPETO DIGITALE'!D12 -> 0 | D19: =1454.24 -> 1454.24 | E19: =D19*C19 -> 0
A20: Arredo per Tappeto digitale | B20: Sedute monoscocca con struttura in robusto tubolare spessore 1.8mm verniciato a polveri epossidiche in colore grigio chiaro e scocca in in materiale termoplastico (polipropilene copolimero) diprima scelta, autoestinguente, con foro nello schienale per agevolare la presa. Classe 1 di resistenza al fuoco Dimensione cm 43,5 x 43,5 x h 44 . | C20: ='ARREDO PER TAPPETO DIGITALE'!D13 -> 0 | D20: 45.14 | E20: =D20*C20 -> 0
A21: Arredo per Tappeto digitale | B21: Sedute con struttura in robusto tubolare ovale 30x15mm con traversi in tubo tondo diam. 18 mm verniciato a polveri epossidiche in colore grigio chiaro. Schienale e seduta imbottiti e rivestiti in tessuto ignifugo. Dimensione cm 43,5 x 43,5 x 42. | C21: ='ARREDO PER TAPPETO DIGITALE'!D14 -> 0 | D21: 41.48 | E21: =D21*C21 -> 0
A22: Arredo per Tappeto digitale | B22: Poltroncina ergonomica imbottita, senza braccioli, su ruote | C22: ='ARREDO PER TAPPETO DIGITALE'!D15 -> 0 | D22: 112.24 | E22: 0
A23: Arredo per Tappeto digitale | B23: Armadio metallico 120x45x200h cm con ante scorrevoli. 4+4 ripiani interni | C23: ='ARREDO PER TAPPETO DIGITALE'!D16 -> 0 | D23: 1034.56 | E23: 0
A24: Arredo per Tappeto digitale | B24: Colonnina esagonale su ruote di ricarica e stivaggio dall’alto per almeno 12 Tablet, 12 prese usb per alimentazione intelligente Tablet, interruttore generale, protezione vano con serratura | C24: ='ARREDO PER TAPPETO DIGITALE'!D17 -> 0 | D24: 624.64 | E24: 0
A25: Robotica Educativa | B25: Kit Costruzione robot con piu di 850 pezzi , inclusi N°4 motori, N°7 Sensori, 1 unità programmabile con la possibilità di connettere contemporanemente dodici dispositivi tra sensori e motori, N°1 Joystick, N°1 batteria, box contenitore. Disegni tecnici CAD di tutti i pezzi e licenza software proprietario per la modellazione 3D. | C25: ='ROBOTICA EDUCATIVA'!D6 -> 0 | D25: 573.4 | E25: 0
A26: Robotica Educativa | B26: terreno di gioco per kit di robotica | C26: ='ROBOTICA EDUCATIVA'!D7 -> 0 | D26: 732 | E26: 0
A27: FABLab | B27: Stampante 3D FFF con modulo wifi integrato | C27: =FABLAB!D8 -> 0 | D27: 2305.8 | E27: 0
A28: FABLab | B28: SCANNER 3D PORTATILE Volume di scansione Min: 0.2m x 0.2m x 0.2m Max: 3m x 3m x 3m Range di lavoro Min: 0.35m Max: 3m Profondità immagine 240(w) x 320(h) px Spatial x/y resolution @ 0.5m 0.9mm Depth resolution @ 0.5m 1mm Interfaccia USB 2.0/USB 3.0 Formato Dati 16 bit Massimo frame rate 30 fps Misure immagini 240(w) x 320(h) px.Comprensivo di formazione e installazione. | C28: =FABLAB!D10 -> 0 | D28: 641.72 | E28: =D28*C28 -> 0
A29: FABLab | B29: Stampante 3D FFF con modulo CNC e telaio meccanico | C29: =FABLAB!D6 -> 0 | D29: =2940*1.22 -> 3586.8 | E29: =D29*C29 -> 0
A30: FABLab | B30: Stampante tipo 3D FDM di tipo Delta per stampa di oggetti con diametro 20 cm. Kit estrusore per lavorazione argilla incluso | C30: =FABLAB!D7 -> 0 | D30: =3170.78 -> 3170.78 | E30: =D30*C30 -> 0
A31: FABLab | B31: Stampante 3D FFF con modulo CNC e kit di estrusione per liquidi densi | C31: =FABLAB!D9 -> 0 | D31: 3696.6 | E31: 0
A32: Elettronica educativa | B32: Simulatore di processo Arduino - Centrale idroelettrica Sistema completo con interfaccia bluetooth e app per la gestione da tablet/smartphone | C32: ='ELETTRONICA EDUCATIVA'!D6 -> 0 | D32: 361.9984 | E32: 0
A33: Elettronica educativa | B33: Simulatore di processo Arduino - Serra Sistema completo con interfaccia bluetooth e app per la gestione da tablet/smartphone | C33: ='ELETTRONICA EDUCATIVA'!D7 -> 0 | D33: 361.9984 | E33: 0
A34: Elettronica educativa | B34: Simulatore di processo - Impianto solare Sistema completo con interfaccia bluetooth e app per la gestione da tablet/smartphone | C34: ='ELETTRONICA EDUCATIVA'!D8 -> 0 | D34: 361.9984 | E34: 0
A35: Elettronica educativa | B35: Simulatore di processo - Sistema di trasmissione senza fili Sistema completo con interfaccia bluetooth e app per la gestione da tablet/smartphone | C35: ='ELETTRONICA EDUCATIVA'!D9 -> 0 | D35: 398.0006 | E35: 0
A36: Elettronica educativa | B36: Interfaccia per esperienze in elettronica educativa, con software di programmazione intuitiva incluso | C36: ='ELETTRONICA EDUCATIVA'!D10 -> 0 | D36: 175.68 | E36: 0
A37: Elettronica educativa | B37: Scenario cancello automatico per elettronica educativa, precablato e fornito montato, interfacciabile a PC o tablet | C37: ='ELETTRONICA EDUCATIVA'!D11 -> 0 | D37: 366 | E37: 0
A38: Elettronica educativa | B38: Scenario tracciatore solare per elettronica educativa, precablato e fornito montato, interfacciabile a PC o tablet | C38: ='ELETTRONICA EDUCATIVA'!D12 -> 0 | D38: 359.9 | E38: 0
A39: Elettronica educativa | B39: Scenario impianto eolico per elettronica educativa, precablato e fornito montato, interfacciabile a PC o tablet | C39: ='ELETTRONICA EDUCATIVA'!D13 -> 0 | D39: 434.32 | E39: 0
A40: STEM | B40: Kit per lo studio delle energie rinnovabili per gli esperimenti sulla creazione di energia elettrica da fonti completamente sostenibili. Corredato da CD con unità didattiche per oltre 40 ore di lezione | C40: =STEM!D6 -> 0 | D40: 1778.76 | E40: 0
A41: STEM | B41: Atelier creativo mobile STEM, con unità didattiche dedicate alle scienze e ai controller Arduino.Grazie all'approccio didattico basato sulle STEM, è possibile realizzare con Arduino gli strumenti di misura da utilizzare con i moduli scientifici. Oltre 130 esperimenti, manuale cartaceo passo-passo e contenuti multimediali dedicati agli esperimenti. | C41: =STEM!D7 -> 0 | D41: 3904 | E41: 0
A42: STEM | B42: Strumento per lo sviluppo del pensiero scientifico, dotato di display LCD, 4 sensori integrati (sensore di luminosità, suono, umidità e pressione dell’aria) e connettività wireless per l'utilizzo in modalità collaborativa. Batteria ricaricabile con durata di almeno 14 giorni in modalità rilevamento e software di analisi dati ed elaborazione grafici matematici in licenza di istituto, con interfaccia personalizzabile in base al grado di studio. | C42: =STEM!D8 -> 0 | D42: 601.46 | E42: 0
A43: STEM | B43: Pannello di lavoro multiposizione per kit didattici STEM. Realizzato in spessa lamiera forata e con diverse possibilità di orientamento. Corredato da CD contenente materiale didattico | C43: =STEM!D9 -> 0 | D43: 231.8 | E43: 0
A44: STEM | B44: Kit Ingranaggi con componenti fissabili su pannello multiposizionale, con diverse possibilità di fissaggio per una massima estensione delle esperienze scientifiche. Corredato da un CD-ROM che include manuali, guide, esperienze di lavoro riproducibili, appunti per gli insegnanti necessari per gli esperimenti con i kit e altro ancora | C44: =STEM!D10 -> 0 | D44: 1283.44 | E44: 0
A45: STEM | B45: Kit Macchine semplici con componenti fissabili su pannello multiposizionale, con diverse possibilità di fissaggio per una massima estensione delle esperienze scientifiche. Corredato da un CD-ROM che include manuali, guide, esperienze di lavoro riproducibili, appunti per gli insegnanti necessari per gli esperimenti con i kit e altro ancora | C45: =STEM!D11 -> 0 | D45: 846.68 | E45: 0
A46: STEM | B46: Kit Collegamenti a barre con componenti fissabili su pannello multiposizionale, con diverse possibilità di fissaggio per una massima estensione delle esperienze scientifiche. Corredato da un CD-ROM che include manuali, guide, esperienze di lavoro riproducibili, appunti per gli insegnanti necessari per gli esperimenti con i kit e altro ancora | C46: =STEM!D12 -> 0 | D46: 939.4 | E46: 0
A47: STEM | B47: Kit Attrito e piano inclinato con componenti fissabili su pannello multiposizionale, con diverse possibilità di fissaggio per una massima estensione delle esperienze scientifiche. Corredato da un CD-ROM che include manuali, guide, esperienze di lavoro riproducibili, appunti per gli insegnanti necessari per gli esperimenti con i kit e altro ancora | C47: =STEM!D13 -> 0 | D47: 766.16 | E47: 0
A48: STEM | B48: Kit Energia potenziale ed energia cinetica con componenti fissabili su pannello multiposizionale, con diverse possibilità di fissaggio per una massima estensione delle esperienze scientifiche. Corredato da un CD-ROM che include manuali, guide, esperienze di lavoro riproducibili, appunti per gli insegnanti necessari per gli esperimenti con i kit e altro ancora | C48: =STEM!D14 -> 0 | D48: 385.52 | E48: 0
A49: STEM | B49: Kit Puleggia con componenti fissabili su pannello multiposizionale, con diverse possibilità di fissaggio per una massima estensione delle esperienze scientifiche. Corredato da un CD-ROM che include manuali, guide, esperienze di lavoro riproducibili, appunti per gli insegnanti necessari per gli esperimenti con i kit e altro ancora | C49: =STEM!D15 -> 0 | D49: 751.52 | E49: 0
A50: STEM | B50: Kit Sistemi di trasmissione con componenti fissabili su pannello multiposizionale, con diverse possibilità di fissaggio per una massima estensione delle esperienze scientifiche. Corredato da un CD-ROM che include manuali, guide, esperienze di lavoro riproducibili, appunti per gli insegnanti necessari per gli esperimenti con i kit e altro ancora | C50: =STEM!D16 -> 0 | D50: 1002.84 | E50: 0
A51: ICT PER IL TAPPETO DIGITALE | B51: Schermo interattivo Full-HD 65”, 10 tocchi, pc i5 win 10 pro,Tastiera e mouse, Software Coding | C51: ='ICT TAPPETO DIGITALE'!D6 -> 0 | D51: 3591.68 | E51: 0
A52: ICT PER IL TAPPETO DIGITALE | B52: Schermo interattivo Full-HD 65”, 10 tocchi, con licenza piattaforma Coding inclusa | C52: ='ICT TAPPETO DIGITALE'!D7 -> 0 | D52: 2461.96 | E52: 0
A53: ICT PER IL TAPPETO DIGITALE | B53: Schermo interattivo Full HD 65" 40 tocchi, con software autore, PC OPS Intel i3 Windows Pro e carrello integrati. Licenza per piattoforma cloud dedicata al Coding | C53: ='ICT TAPPETO DIGITALE'!D8 -> 0 | D53: 4382.24 | E53: 0
A54: ICT PER IL TAPPETO DIGITALE | B54: Schermo interattivo Full HD 65" 32 tocchi,con PC OPS Intel i3 Windows Pro e suite di programmi didattici del produttore. Licenza per piattaforma didattica multidisciplinare inclusa. | C54: ='ICT TAPPETO DIGITALE'!D9 -> 0 | D54: 4538.4 | E54: 0
A55: ICT PER IL TAPPETO DIGITALE | B55: LIM 87” formato 16:10 + Videoproiettore ad ottica ultracorta WXGA 3D ready + speaker amplificati 120W + corso di addestramento. 4 tocchi tecnologia Ottica Multitouch. Software di gestione del produttore. Utilizzabile per la certificazione AICA “CERT-LIM Interactive Teacher”. | C55: ='ICT TAPPETO DIGITALE'!D10 -> 0 | D55: =1739.72 -> 1739.72 | E55: 0
A56: ICT PER IL TAPPETO DIGITALE | B56: Carrello/Tavolo Mobile per utilizzare lo schermo interattivo sia in verticale che in orizzontale, come tavolo interattivo. Alzata elettrica. | C56: ='ICT TAPPETO DIGITALE'!D11 -> 0 | D56: 1472.54 | E56: 0
A57: ICT PER IL TAPPETO DIGITALE | B57: Videoproiettore ad ottica ultracorta WXGA 3100 Ansi Lumen | C57: ='ICT TAPPETO DIGITALE'!D12 -> 0 | D57: 1124.84 | E57: 0
A58: ICT PER IL TAPPETO DIGITALE | B58: Videoproiettore 3LCD ad ottica ultracorta WXGA 3000 Ansi Lumen 6000:1 - gestione energetica intelligente e fattore di zoom 1,4x | C58: ='ICT TAPPETO DIGITALE'!D13 -> 0 | D58: 1069.94 | E58: 0
A59: ICT PER IL TAPPETO DIGITALE | B59: speaker amplificati 54 W | C59: ='ICT TAPPETO DIGITALE'!D14 -> 0 | D59: 46.36 | E59: 0
A60: ICT PER IL TAPPETO DIGITALE | B60: Mobiletto di sicurezza a parete per notebook, in ferro verniciato a forno. Chiusura con chiave di sicurezza e predisposizione per due lucchetti (forniti). Vano porta alimentatore. Elettrificazione con 4 prese shuko. Cavo di Sicurezza Kensington. | C60: ='ICT TAPPETO DIGITALE'!D16 -> 0 | D60: 46.36 | E60: 0
A61: ICT PER IL TAPPETO DIGITALE | B61: Document Camera 5 MPx con funzione di manipolazione oggetti 3D | C61: ='ICT TAPPETO DIGITALE'!D15 -> 0 | D61: 927.2 | E61: 0
A62: ICT PER IL TAPPETO DIGITALE | B62: Servizio di installazione LIM/schermo interattivo | C62: ='ICT TAPPETO DIGITALE'!D17 -> 0 | D62: 183 | E62: 0
A63: ICT PER IL TAPPETO DIGITALE | B63: Notebook 15,6" Intel Core i5 di settima generazione, 4GB di RAM, disco 500GB, masterizzatore DVD, HDMI-VGA-Bluetooth, connettività Wireless Dual Band. Windows Pro 10 64 bit. Licenza di rete didattica del produttore. Firmware Coding. Servizio di garanzia 36 mesi del produttore con rimborso notebook in caso di guasto nel primo anno. | C63: ='ICT TAPPETO DIGITALE'!D18 -> 0 | D63: 746.64 | E63: 0
A64: ICT PER IL TAPPETO DIGITALE | B64: Notebook 15,6" Intel Core i3 di sesta generazione, 4GB di RAM, disco 500GB, masterizzatore DVD, HDMI-VGA-Bluetooth, connettività Wireless Dual Band. Windows Pro 10 64 bit. Licenza di rete didattica del produttore. Firmware Coding. Servizio di garanzia 36 mesi del produttore con rimborso notebook in caso di guasto nel primo anno. | C64: ='ICT TAPPETO DIGITALE'!D19 -> 0 | D64: 614.88 | E64: 0
A65: ICT PER IL TAPPETO DIGITALE | B65: Notebook 13,3" Intel Pentium serie U, 4GB di RAM, disco SSD 128GB, SD card reader, HDMI-Bluetooth, connettività Wireless Dual Band. Windows Pro 10 64 bit. Licenza di rete didattica del produttore. Firmware Coding. Servizio di garanzia 36 mesi del produttore con rimborso notebook in caso di guasto nel primo anno. | C65: ='ICT TAPPETO DIGITALE'!D20 -> 0 | D65: 600.24 | E65: 0
A66: ICT PER IL TAPPETO DIGITALE | B66: Notebook ibrido PC/tablet 10,1” semirugged multi-touch, RAM 2 GB, SSD 64 GB, tastiera docking, Windows 10 Pro. Pila software didattici. Sensore temperatura e lente 30x. Penna stilo.. | C66: ='ICT TAPPETO DIGITALE'!D21 -> 0 | D66: 402.6 | E66: 0
A67: STORYTELLING | B67: Carrello interattivo per Storytelling multimediale, trasportabile su ruote, con display interattivo multitouch, scanner documentale CIS, interfaccia tangibile basata su tecnologie RFID, 1-wire, controllo pulsanti e matrice LED | C67: =STORYTELLING!D6 -> 0 | D67: 9516 | E67: 0
A68: ARTE E CREATIVITA' | B68: Plotter da taglio di noto brand internazionale per materiale vinilico, PVC e materiale termotrasferibile. Luce di taglio 16 cm e larghezza area fino a 21,5 cm. Connettività USB, rilevatore crocino di stampa manuale integrato per abbinamento a stampante laser. Garanzia 3 anni del produttore | C68: ='ARTE E CREATIVITA'!D6 -> 0 | D68: 450.18 | E68: 0
A69: ARTE E CREATIVITA' | B69: Plotter da taglio di noto brand internazionale per materiale vinilico, PVC e materiale termotrasferibile. Luce di taglio 16 cm e larghezza area fino a 21,5 cm. Connettività USB, rilevatore crocino di stampa manuale integrato per abbinamento a stampante laser. Garanzia 3 anni del produttore | C69: ='ARTE E CREATIVITA'!D7 -> 0 | D69: 584.38 | E69: 0
A70: ARTE E CREATIVITA' | B70: Plotter da taglio di noto brand internazionale per materiale vinilico, PVC e materiale termotrasferibile. Luce di taglio 16 cm e larghezza area fino a 21,5 cm. Connettività USB, rilevatore crocino di stampa manuale integrato per abbinamento a stampante laser. Garanzia 3 anni del produttore | C70: ='ARTE E CREATIVITA'!D8 -> 0 | D70: 852.78 | E70: 0
A71: ARTE E CREATIVITA' | B71: Tornio elettrico con seggiolino – diametro girello 290 mm. – diametro interno catino 410 mm. – ampia antina reclinabile porta attrezzi in legno – seggiolino regolabile in altezza fissato al corpo del tornio. | C71: ='ARTE E CREATIVITA'!D9 -> 0 | D71: 1756.8 | E71: 0
A72: ARTE E CREATIVITA' | B72: Torniello da banco per decorazione costruito in acciaio verniciato con piano stampato girevole su sfera, deve permettere un’ottima stabilità sia in fase di decorazione di oggetti, sia nel caso si impieghi il torniello nella modellazione dell’argilla. | C72: ='ARTE E CREATIVITA'!D10 -> 0 | D72: 202.52 | E72: 0
A73: ARTE E CREATIVITA' | B73: Banco da lavoro con piano superiore in marmo - dimensioni mm. 2000x900 spessore mm. 30 con struttura in acciaio verniciato. | C73: ='ARTE E CREATIVITA'!D11 -> 0 | D73: 1556.72 | E73: 0
A74: ARTE E CREATIVITA' | B74: Starter pack per lavorazione ceramica composto da: 8 attrezzi per la modellazione dell’argilla (n. 1 cavetto taglia argilla con manici legno, n. 1 stecca in legno, n. 1 raschietto in acciaio, n. 1 miretta, n. 1 attrezzo per torniante, n. 1 raschietto in legno, n. 1 rifinitore, n. 1 spugnetta=, due pacchi di argilla per modellazione da 25 Kg cadauno (colore bianco e rosso), un kit di 10 pennelli in pelo di bue e nr. 2 vasetti da 200ml di smalto per le attività di decorazione. | C74: ='ARTE E CREATIVITA'!D12 -> 0 | D74: 285.48 | E74: 0
A75: ARTE E CREATIVITA' | B75: Banco da lavoro per bambini. In legno di faggio. Lunghezza piano di lavoro esclusa morsa laterale 870 mm. Lunghezza piano di lavoro inclusa morsa laterale e testa della vite 1000 mm. Larghezza piano di lavoro esclusa morsa frontale 360 mm. Larghezza piano di lavoro inclusa morsa frontale e testa della vite 490 mm. Spessore piano 27 mm. Spessore piano cani 70 mm. Altezza faccia superiore piano (altezza di lavoro) 660 e 860 mm. Larghezza massima fissaggio morsa laterale 120 mm. Larghezza massima fissaggio morsa frontale 120 mm | C75: ='ARTE E CREATIVITA'!D13 -> 0 | D75: 468.48 | E75: 0
A76: ARTE E CREATIVITA' | B76: Set attrezzi per lavorazione del legno, adatto all'utilizzo da parte dei ragazzi. Composto da: Archetto da traforo per bambini, Mini Kataba specifica per tagli traverso, Martello da mobiliere,Mazzuolo in ottone, Trapano ad ingranaggi, Set 4 succhielli da 2,3,4 e 5 mm, Livella in alluminio, Pialla da sgrosso piccola senza rompitruciolo, Set di 4 scalpelli corti, coltellino da intaglio, Set di 8 occhiali protettivi per ragazzi | C76: ='ARTE E CREATIVITA'!D14 -> 0 | D76: 512.4 | E76: 0
A77: ARTE E CREATIVITA' | B77: Minicucina completa trasportabile. Minicucina completa trasportabile. Dim. L120xP64xH94 in modalità chiusa. Struttura in multistrato bilaminato.Piani di lavoro scorrevoli (con blocco di sicurezza in modalità aperta) in acciaio inox 18/10. Top in acciaio inox 18/10.Lavello a una vasca in acciaio inox 18/10. Rubunetto richiudibile a ribalta. Impianto idrico con carico/scarico acqua e pompa elettrica con autonomia 12Lt. Piano cottura ad induzione due fuochi. Forno elettrico ventilato con funzione a vapore, pirolitico, funzione pizza e 9 funzioni cottura. Cestello portastoviglie in acciaio da 60 cm.Cassetto portaposate. N.4 ruote da 10 CM con rivestimento in gomma e blocco. Impianto elettrico con interruttore magnetotermico di protezione. | C77: ='ARTE E CREATIVITA'!D15 -> 0 | D77: 8208.16 | E77: 0
A78: ARTE E CREATIVITA' | B78: Kti completo di strumenti e attrezzature per la cucina mobile. Composto da: Set pentole 10 pezzi per induzione, set 6 utensili di acciaio inossidabile solido, silicone senza BPA e resistente al calore fino a 200℃, set 6 coltelli rivestiti in ceramica, set 3 setacci in acciaio a maglia fine, servizio posate da 16 pezzi in acciaio, servizio piatti in porcellana bianco da 18 pezzi, Robot multifunzione 750W da 1,2 litri di capacità, Set di 6 contenitori di plastica con meccanismo di chiusura a 4 punti e guarnizioni in silicone | C78: ='ARTE E CREATIVITA'!D16 -> 0 | D78: 802.76 | E78: 0
B80: TOTALE FORNITURA | E80: =SUM(E12:E78) -> 0

Sheet ARREDO PER TAPPETO DIGITALE
B1: ARREDO PER TAPPETO DIGITALE
B5: Tipologia | C5: Descrizione | D5: Qtà | E5: Costo Unitario | F5: Costo Totale | G5: Codice MEPA (con link a scheda su catalogo SIAD)
B6: Arredi mobili e modulari | C6: Tavolo ribaltabile aggregabile dim 140x70x72. Struttura portante interamente in acciaio, su 4 ruote con freno. Piano spessore 25 mm con bordo in ABS 2 mm arrotondato su tutti gli angoli con raggio 45 mm. Prodotto italiano di azienda certificata ISO 9001:2008 | D6: 0 | E6: =331*1.22 -> 403.82 | F6: =D6*E6 -> 0 | G6: SIAD-ARR-026-140
B7: Arredi mobili e modulari | C7: Tavolo trapezoidale ribaltabile aggregabile dim 140x61x72. Struttura portante interamente in acciaio, su 4 ruote con freno. Piano spessore 25 mm con bordo in ABS 2 mm arrotondato su tutti gli angoli con raggio 45 mm. Prodotto italiano di azienda certificata ISO 9001:2008 | D7: 0 | E7: =350*1.22 -> 427 | F7: 0 | G7: SIAD-ARR-027
B8: Arredi mobili e modulari | C8: Tavolo aggregabile a sezione a 6 curve combinabile, struttura colore RAL 9006 realizzata in tubolare Ø 60mm. La particolare forma progettata per essere combinata con altri tavoli del medesimo tipo, permette di creare in modo agevole gruppi con numero di partecipanti variabili, in linea con le esigenze didattiche. Il piano di lavoro spessore 20 mm è realizzato in melaminico antigraffio sagomato con spigoli arrotondati e bordato in ABS spessore 2 mm in linea con le normative vigenti in termini di sicurezza. Prodotto italiano di azienda certificata ISO 9001:2008 | D8: 0 | E8: =132.5*1.22 -> 161.65 | F8: 0 | G8: SIAD-ARR-028-71
B9: Arredi mobili e modulari | C9: Banchi modulari componibili per classe dinamica, struttura in metallo tubolare Ø 28mm con 2 ruote frontali piroettanti che consentono di spostare agevolmente il banco e permettere di creare agevolmente delle configurazioni d’aula, Piano di lavoro a forma trapezoidale in Melaminico antigraffio sagomato dimensione 98x45 cm, arrotondato risbordato in ABS. Piano disponibile in diversi colori. | D9: 0 | E9: =140*1.22 -> 170.8 | F9: 0 | G9: SIAD-ARR-015-71C
B10: Scrivanie | C10: Tavolo Postazione docente ad angolo dim. cm 180x80x72 + Angolo tondo 90° + 100x80x72 ca. Struttura portante interamente in acciaio | D10: 0 | E10: =424*1.22 -> 517.28 | F10: 0 | G10: SIAD-ARR-004
B11: Scrivanie | C11: Scrivania docente dim 180x80x72. Struttura portante interamente in acciaio. Piano spessore 25 mm con bordo in ABS 2 mm arrotondato su tutti gli angoli con raggio 45 mm | D11: 0 | E11: =182*1.22 -> 222.04 | F11: 0 | G11: SIAD-ARR-001-180
B12: Scrivanie | C12: Isola di lavoro a 3 posti 120° completa di divisori e porta CPU sospesi, piano spessore 28mm, dotato di fianchi coperti. Canalizzazione a norma per impianti, gamba piena pennellata in fibra legnosa nobilitata melaminica. Elettrificazione con prese multistandard e foro passacavo sul piano di lavoro. Lunghezza minima 208 cm, larghezza minima 120 cm. | D12: 0 | E12: =1192*1.22 -> 1454.24 | F12: 0 | G12: SIAD-ARR-005
B13: Arredi mobili e modulari | C13: Sedute monoscocca con struttura in robusto tubolare spessore 1.8mm verniciato a polveri epossidiche in colore grigio chiaro e scocca in in materiale termoplastico (polipropilene copolimero) diprima scelta, autoestinguente, con foro nello schienale per agevolare la presa. Classe 1 di resistenza al fuoco Dimensione cm 43,5 x 43,5 x h 44 . | D13: 0 | E13: =37*1.22 -> 45.14 | F13: 0 | G13: SIAD-ARR-058-5
B14: Arredi mobili e modulari | C14: Sedute con struttura in robusto tubolare ovale 30x15mm con traversi in tubo tondo diam. 18 mm verniciato a polveri epossidiche in colore grigio chiaro. Schienale e seduta imbottiti e rivestiti in tessuto ignifugo. Dimensione cm 43,5 x 43,5 x 42. | D14: 0 | E14: =34*1.22 -> 41.48 | F14: 0 | G14: SIAD-ARR-062
B15: Arredi mobili e modulari | C15: Poltroncina ergonomica imbottita, senza braccioli, su ruote | D15: 0 | E15: =92*1.22 -> 112.24 | F15: 0 | G15: SIAD-ARR-061
B16: Armadi | C16: Armadio metallico 120x45x200h cm dotato di sistema di conservazione a tre colonne con nr. 15 vassoi estraibili | D16: 0 | E16: =848*1.22 -> 1034.56 | F16: =D16*E16 -> 0 | G16: SIAD-ARR-045
B17: Armadi di ricarica e stoccaggio dispositivi | C17: Colonnina esagonale su ruote di ricarica e stivaggio dall’alto per almeno 12 Tablet, 12 prese usb per alimentazione intelligente Tablet, interruttore generale, protezione vano con serratura | D17: 0 | E17: =512*1.22 -> 624.64 | F17: =D17*E17 -> 0 | G17: SIAD-ARR-023
C19: TOTALE ARREDI IVA INCLUSA | F19: =SUM(F6:F18) -> 0

Sheet ROBOTICA EDUCATIVA
B1: ROBOTICA EDUCATIVA
B5: Tipologia | C5: Descrizione | D5: Qtà | E5: Costo Unitario | F5: Costo Totale | G5: Codice MEPA (con link a scheda su catalogo SIAD)
B6: KIT ROBOTICA | C6: Kit Costruzione robot con piu di 850 pezzi , inclusi N°4 motori, N°7 Sensori, 1 unità programmabile con la possibilità di connettere contemporanemente dodici dispositivi tra sensori e motori, N°1 Joystick, N°1 batteria, box contenitore. Disegni tecnici CAD di tutti i pezzi e licenza software proprietario per la modellazione 3D. | D6: 0 | E6: =470*1.22 -> 573.4 | F6: =D6*E6 -> 0 | G6: SIAD-VEX-01
B7: Arredi mobili e modulari | C7: terreno di gioco per kit di robotica | D7: 0 | E7: =600*1.22 -> 732 | F7: =D7*E7 -> 0 | G7: FULLBNKS
C10: TOTALE ROBOTICA IVA INCLUSA | F10: =SUM(F6:F9) -> 0

Sheet FABLAB
B1: FABLAB (Stampanti 3d, scanner 3d, fresatrici, ecc)
B5: Tipologia | C5: Descrizione | D5: Qtà | E5: Costo Unitario | F5: Costo Totale | G5: Codice MEPA (con link a scheda su catalogo SIAD)
B6: STAMPANTE 3D | C6: Stampante 3D FFF con modulo per lavorazioni CNC. Telaio completamente metallico, con copertura di sicurezza. Area di lavoro massima 300 x 235 x 165 mm. Testine intercambiabili, connettività USB e LAN integrata. Possibilità di stampa con diversi materiali (ABS, PLA, PVA, HIPS, Nylon, Rubber, Timberfill, Woodlay, Flex, M-ABS, PET-G) | D6: 0 | E6: =2940*1.22 -> 3586.8 | F6: =D6*E6 -> 0 | G6: SIAD-3DS-003
B7: STAMPANTE 3D | C7: Stampante tipo 3D FDM di tipo Delta per stampa di oggetti con diametro 20 cm. Kit estrusore per lavorazione argilla incluso | D7: 0 | E7: =2599*1.22 -> 3170.78 | F7: =D7*E7 -> 0 | G7: SIAD-3DS-004
B8: STAMPANTE 3D | C8: Stampante 3D FFF con connettività wifi integrata. Area di stampa 25x20x20. Piano riscaldato rimuovibile, pannello touch a colori integrato, connettività USB. Stampa diretta da pen drive USB. | D8: 0 | E8: =1890*1.22 -> 2305.8 | G8: SIAD-3DS-001
B9: STAMPANTE 3D | C9: Stampante 3D FFF con modulo per lavorazioni CNC ed estrusore per liquidi. Telaio completamente metallico, con copertura di sicurezza. Area di lavoro massima 300 x 235 x 165 mm. Testine intercambiabili, connettività USB e LAN integrata. Possibilità di stampa con diversi materiali (ABS, PLA, PVA, HIPS, Nylon, Rubber, Timberfill, Woodlay, Flex, M-ABS, PET-G) | D9: 0 | E9: =3030*1.22 -> 3696.6 | F9: 0 | G9: SIAD-3DS-005
B10: Scanner 3D | C10: SCANNER 3D PORTATILE: Volume di scansione Min: 0.2m x 0.2m x 0.2m Max: 3m x 3m x 3m Range di lavoro Min: 0.35m Max: 3m Profondità immagine 240(w) x 320(h) px Spatial x/y resolution @ 0.5m 0.9mm Depth resolution @ 0.5m 1mm Interfaccia USB 2.0/USB 3.0 Formato Dati 16 bit Massimo frame rate 30 fps Misure immagini 240(w) x 320(h) px.Comprensivo di formazione e installazione. | D10: 0 | E10: =526*1.22 -> 641.72 | F10: 0 | G10: SIAD-3DS-002
C13: TOTALE FABLAB IVA INCLUSA | F13: =SUM(F6:F12) -> 0

Sheet ELETTRONICA EDUCATIVA
B1: ELETTRONICA EDUCATIVA
B5: Tipologia | C5: Descrizione | D5: Qtà | E5: Costo Unitario | F5: Costo Totale | G5: Codice MEPA (con link a scheda su catalogo SIAD)
B6: Simulatori Arduino | C6: Simulatore di processo Arduino - Centrale idroelettrica Sistema completo con interfaccia bluetooth e app per la gestione da tablet/smartphone | D6: 0 | E6: =296.72*1.22 -> 361.9984 | F6: =D6*E6 -> 0 | G6: SIAD-SCI-028
B7: Simulatori Arduino | C7: Simulatore di processo Arduino - Serra Sistema completo con interfaccia bluetooth e app per la gestione da tablet/smartphone | D7: 0 | E7: =296.72*1.22 -> 361.9984 | F7: =D7*E7 -> 0 | G7: SIAD-SCI-029
B8: Simulatori Arduino | C8: Simulatore di processo - Impianto solare Sistema completo con interfaccia bluetooth e app per la gestione da tablet/smartphone | D8: 0 | E8: =296.72*1.22 -> 361.9984 | F8: 0 | G8: SIAD-SCI-030
B9: Simulatori Arduino | C9: Simulatore di processo - Sistema di trasmissione senza fili Sistema completo con interfaccia bluetooth e app per la gestione da tablet/smartphone | D9: 0 | E9: =326.23*1.22 -> 398.0006 | F9: 0 | G9: SIAD-SCI-031
B10: Elettronica educativa | C10: Interfaccia per esperienze in elettronica educativa, con software di programmazione intuitiva incluso | D10: 0 | E10: =144*1.22 -> 175.68 | F10: 0 | G10: SIAD-SCI-005
B11: Elettronica educativa | C11: Scenario cancello automatico per elettronica educativa, precablato e fornito montato, interfacciabile a PC o tablet | D11: 0 | E11: =300*1.22 -> 366 | F11: 0 | G11: SIAD-SCI-006
B12: Elettronica educativa | C12: Scenario tracciatore solare per elettronica educativa, precablato e fornito montato, interfacciabile a PC o tablet | D12: 0 | E12: =295*1.22 -> 359.9 | F12: 0 | G12: SIAD-SCI-007
B13: Elettronica educativa | C13: Scenario impianto eolico per elettronica educativa, precablato e fornito montato, interfacciabile a PC o tablet | D13: 0 | E13: =356*1.22 -> 434.32 | F13: 0 | G13: SIAD-SCI-008
C15: TOTALE ELETTRONICA EDUCATIVA IVA INCLUSA | F15: =SUM(F6:F14) -> 0

Sheet STEM
B1: STEM (Soluzioni trasversali per lo studio di Scienze, Matematica, Fisica e Tecnologie)
B5: Tipologia | C5: Descrizione | D5: Qtà | E5: Costo Unitario | F5: Costo Totale | G5: Codice MEPA (con link a scheda su catalogo SIAD)
B6: Kit Didattici | C6: Kit per lo studio delle energie rinnovabili per gli esperimenti sulla creazione di energia elettrica da fonti completamente sostenibili. Corredato da CD con unità didattiche per oltre 40 ore di lezione | D6: 0 | E6: =1458*1.22 -> 1778.76 | F6: =D6*E6 -> 0 | G6: SIAD-SCI-015
B7: Kit Didattici | C7: Atelier creativo mobile STEM, con unità didattiche dedicate alle scienze e ai controller Arduino.Grazie all'approccio didattico basato sulle STEM, è possibile realizzare con Arduino gli strumenti di misura da utilizzare con i moduli scientifici. Oltre 130 esperimenti, manuale cartaceo passo-passo e contenuti multimediali dedicati agli esperimenti. | D7: 0 | E7: =3200*1.22 -> 3904 | F7: =D7*E7 -> 0 | G7: SIAD-MOBI-005
B8: Strumenti | C8: Strumento per lo sviluppo del pensiero scientifico, dotato di display LCD, 4 sensori integrati (sensore di luminosità, suono, umidità e pressione dell’aria) e connettività wireless per l'utilizzo in modalità collaborativa. Batteria ricaricabile con durata di almeno 14 giorni in modalità rilevamento e software di analisi dati ed elaborazione grafici matematici in licenza di istituto, con interfaccia personalizzabile in base al grado di studio. | D8: 0 | E8: =493*1.22 -> 601.46 | F8: =D8*E8 -> 0 | G8: SIAD-SCI-017
B9: Strumenti | C9: Pannello di lavoro multiposizione per kit didattici STEM. Realizzato in spessa lamiera forata e con diverse possibilità di orientamento. Corredato da CD contenente materiale didattico | D9: 0 | E9: =190*1.22 -> 231.8 | F9: 0 | G9: SIAD-TCQ-ES1
B10: Kit Didattici | C10: Kit Ingranaggi con componenti fissabili su pannello multiposizionale, con diverse possibilità di fissaggio per una massima estensione delle esperienze scientifiche. Corredato da un CD-ROM che include manuali, guide, esperienze di lavoro riproducibili, appunti per gli insegnanti necessari per gli esperimenti con i kit e altro ancora | D10: 0 | E10: =1052*1.22 -> 1283.44 | F10: 0 | G10: SIAD-TCQ-ES13
B11: Kit Didattici | C11: Kit Macchine semplici con componenti fissabili su pannello multiposizionale, con diverse possibilità di fissaggio per una massima estensione delle esperienze scientifiche. Corredato da un CD-ROM che include manuali, guide, esperienze di lavoro riproducibili, appunti per gli insegnanti necessari per gli esperimenti con i kit e altro ancora | D11: 0 | E11: =694*1.22 -> 846.68 | F11: 0 | G11: SIAD-TCQ-ES14
B12: Kit Didattici | C12: Kit Collegamenti a barre con componenti fissabili su pannello multiposizionale, con diverse possibilità di fissaggio per una massima estensione delle esperienze scientifiche. Corredato da un CD-ROM che include manuali, guide, esperienze di lavoro riproducibili, appunti per gli insegnanti necessari per gli esperimenti con i kit e altro ancora | D12: 0 | E12: =770*1.22 -> 939.4 | F12: 0 | G12: SIAD-TCQ-ES15
B13: Kit Didattici | C13: Kit Attrito e piano inclinato con componenti fissabili su pannello multiposizionale, con diverse possibilità di fissaggio per una massima estensione delle esperienze scientifiche. Corredato da un CD-ROM che include manuali, guide, esperienze di lavoro riproducibili, appunti per gli insegnanti necessari per gli esperimenti con i kit e altro ancora | D13: 0 | E13: =628*1.22 -> 766.16 | F13: 0 | G13: SIAD-TCQ-ES8
B14: Kit Didattici | C14: Kit Energia potenziale ed energia cinetica con componenti fissabili su pannello multiposizionale, con diverse possibilità di fissaggio per una massima estensione delle esperienze scientifiche. Corredato da un CD-ROM che include manuali, guide, esperienze di lavoro riproducibili, appunti per gli insegnanti necessari per gli esperimenti con i kit e altro ancora | D14: 0 | E14: =316*1.22 -> 385.52 | F14: 0 | G14: SIAD-TCQ-ES9
B15: Kit Didattici | C15: Kit Puleggia con componenti fissabili su pannello multiposizionale, con diverse possibilità di fissaggio per una massima estensione delle esperienze scientifiche. Corredato da un CD-ROM che include manuali, guide, esperienze di lavoro riproducibili, appunti per gli insegnanti necessari per gli esperimenti con i kit e altro ancora | D15: 0 | E15: =616*1.22 -> 751.52 | F15: 0 | G15: SIAD-TCQ-ES10
B16: Kit Didattici | C16: Kit Sistemi di trasmissione con componenti fissabili su pannello multiposizionale, con diverse possibilità di fissaggio per una massima estensione delle esperienze scientifiche. Corredato da un CD-ROM che include manuali, guide, esperienze di lavoro riproducibili, appunti per gli insegnanti necessari per gli esperimenti con i kit e altro ancora | D16: 0 | E16: =822*1.22 -> 1002.84 | F16: 0 | G16: SIAD-TCQ-ES11
C18: TOTALE STEM IVA INCLUSA | F18: =SUM(F6:F17) -> 0

Sheet ICT TAPPETO DIGITALE
B1: ICT PER IL TAPPETO DIGITALE (Lim, schermi interattivi, proiettori, PC/Notebook/tablet, Access Point, ecc.)
B5: Tipologia | C5: Descrizione | D5: Qtà | E5: Costo Unitario | F5: Costo Totale | G5: Codice MEPA (con link a scheda su catalogo SIAD)
B6: SCHERMI INTERATTIVI | C6: Schermo interattivo Full-HD 65”, 10 tocchi, pc i5 win 10 pro,Tastiera e mouse, Software Coding | D6: 0 | E6: =2944*1.22 -> 3591.68 | F6: =D6*E6 -> 0 | G6: SIAD-MON-002
B7: SCHERMO INTERATTIVO | C7: Schermo interattivo Full-HD 65”, 10 tocchi, con licenza piattaforma Coding inclusa | D7: 0 | E7: =2018*1.22 -> 2461.96 | F7: 0 | G7: SIAD-MON-001
B8: SCHERMI INTERATTIVI | C8: Schermo interattivo Full HD 65" 40 tocchi, con software autore, PC OPS Intel i3 Windows Pro e carrello integrati. Licenza per piattoforma cloud dedicata al Coding | D8: 0 | E8: =3592*1.22 -> 4382.24 | F8: 0 | G8: SIAD-MON-004
C9: Schermo interattivo Full HD 65" 32 tocchi,con PC OPS Intel i3 Windows Pro e suite di programmi didattici del produttore. Licenza per piattaforma didattica multidisciplinare inclusa. | D9: 0 | E9: =3720*1.22 -> 4538.4 | G9: SIAD-MON-005
B10: LAVAGNA INTERATTIVA MULTIMEDIALE | C10: LIM 89” formato 16:10 + Videoproiettore ad ottica ultracorta WXGA 3D ready.10 tocchi tecnologia Ottica DVT Multitouch. Software di gestione del produttore con funzioni collaborative. Videoproiettore DLP WXGA ad ottica ultracorta 3300 ANSI 18.000:1 con staffa a parete. | D10: 0 | E10: =1426*1.22 -> 1739.72 | F10: 0 | G10: SIAD-KIT-004
B11: Accessori LIM e schermi | C11: Carrello/Tavolo Mobile per utilizzare lo schermo interattivo sia in verticale che in orizzontale, come tavolo interattivo. Alzata elettrica. | D11: 0 | E11: =1207*1.22 -> 1472.54 | F11: =D11*E11 -> 0 | G11: SIAD-ACL-004
B12: VIDEOPROIETTORI | C12: Videoproiettore 3LCD ad ottica ultracorta WXGA 3100 Ansi Lumen 15000:1 | D12: 0 | E12: =922*1.22 -> 1124.84 | F12: 0 | G12: SIAD-VPD-002
B13: VIDEOPROIETTORI | C13: Videoproiettore 3LCD ad ottica ultracorta WXGA 3000 Ansi Lumen 6000:1 - gestione energetica intelligente e fattore di zoom 1,4x | D13: 0 | E13: =877*1.22 -> 1069.94 | F13: =D13*E13 -> 0 | G13: SIAD-VPD-006
B14: ACCESSORI LIM E SCHERMI | C14: speaker amplificati 54 W | D14: 0 | E14: =38*1.22 -> 46.36 | F14: 0 | G14: SIAD-ACL-005
B15: ACCESSORI LIM E SCHERMI | C15: Document Camera 5 MPx con funzione di manipolazione oggetti 3D | D15: 0 | E15: 927.2 | F15: 0 | G15: SIAD-ACL-001
B16: ACCESSORI LIM E SCHERMI | C16: Mobiletto di sicurezza a parete per notebook, in ferro verniciato a forno. Chiusura con chiave di sicurezza e predisposizione per due lucchetti (forniti). Vano porta alimentatore. Elettrificazione con 4 prese shuko. Cavo di Sicurezza Kensington. | D16: 0 | E16: =150*1.22 -> 183 | G16: SIAD-ACL-003
B17: INSTALLAZIONI | C17: Servizio di installazione LIM | D17: 0 | E17: =150*1.22 -> 183 | F17: 0 | G17: SIAD-INST-001
B18: NOTEBOOK | C18: Notebook 15,6" Intel Core i5 di settima generazione, 4GB di RAM, disco 500GB, masterizzatore DVD, HDMI-VGA-Bluetooth, connettività Wireless Dual Band. Windows Pro 10 64 bit. Licenza di rete didattica del produttore. Firmware Coding. Servizio di garanzia 36 mesi del produttore con rimborso notebook in caso di guasto nel primo anno. | D18: 0 | E18: =612*1.22 -> 746.64 | F18: 0 | G18: SIAD-NBK-001
B19: NOTEBOOK | C19: Notebook 15,6" Intel Core i3 di sesta generazione, 4GB di RAM, disco 500GB, masterizzatore DVD, HDMI-VGA-Bluetooth, connettività Wireless Dual Band. Windows Pro 10 64 bit. Licenza di rete didattica del produttore. Firmware Coding. Servizio di garanzia 36 mesi del produttore con rimborso notebook in caso di guasto nel primo anno. | D19: 0 | E19: =504*1.22 -> 614.88 | F19: 0 | G19: SIAD-NBK-002
B20: Notebook | C20: Notebook 13,3" Intel Pentium serie U, 4GB di RAM, disco SSD 128GB, SD card reader, HDMI-Bluetooth, connettività Wireless Dual Band. Windows Pro 10 64 bit. Licenza di rete didattica del produttore. Firmware Coding. Servizio di garanzia 36 mesi del produttore con rimborso notebook in caso di guasto nel primo anno. | D20: 0 | E20: =492*1.22 -> 600.24 | F20: =D20*E20 -> 0 | G20: SIAD-NBK-003
B21: IBRIDO/TABLET | C21: Notebook ibrido PC/tablet 10,1” semirugged multi-touch, RAM 2 GB, SSD 64 GB, tastiera docking, Windows 10 Pro. Pila software didattici. Sensore temperatura e lente 30x. Penna stilo.. | D21: 0 | E21: =330*1.22 -> 402.6 | F21: 0 | G21: SIAD-NBK-004
C25: TOTALE ICT PER TAPPETO DIGITALE IVA INCLUSA | F25: =SUM(F6:F24) -> 0

Sheet STORYTELLING
B1: STORYTELLING
B5: Tipologia | C5: Descrizione | D5: Qtà | E5: Costo Unitario | F5: Costo Totale | G5: Codice MEPA (con link a scheda su catalogo SIAD)
B6: Storytelling multimediale, trasportabile su ruote | C6: Carrello interattivo per Storytelling multimediale, trasportabile su ruote, con display interattivo multitouch, scanner documentale CIS, interfaccia tangibile basata su tecnologie RFID, 1-wire, controllo pulsanti e matrice LED | D6: 0 | E6: =7800*1.22 -> 9516 | F6: =(D6*E6) -> 0 | G6: SIAD-MOBI-003
C8: TOTALE STORYTELLING IVA INCLUSA | F8: =SUM(F6:F7) -> 0

Sheet ARTE E CREATIVITA
B1: ARTE E CREATIVITA' (CERAMICA, LEGNO, CUCINA, GRAFICA DIGITALE)
B5: Tipologia | C5: Descrizione | D5: Qtà | E5: Costo Unitario | F5: Costo Totale | G5: Codice MEPA (con link a scheda su catalogo SIAD)
B6: GRAFICA DIGITALE | C6: Plotter da taglio di noto brand internazionale per materiale vinilico, PVC e materiale termotrasferibile. Luce di taglio 16 cm e larghezza area fino a 21,5 cm. Connettività USB, rilevatore crocino di stampa manuale integrato per abbinamento a stampante laser. Garanzia 3 anni del produttore | D6: 0 | E6: =369*1.22 -> 450.18 | F6: =D6*E6 -> 0 | G6: SIAD-FAB-003
B7: GRAFICA DIGITALE | C7: Plotter da taglio di noto brand internazionale per materiale vinilico, PVC e materiale termotrasferibile. Luce di taglio 16 cm e larghezza area fino a 21,5 cm. Connettività USB, rilevatore crocino di stampa manuale integrato per abbinamento a stampante laser. Garanzia 3 anni del produttore | D7: 0 | E7: =479*1.22 -> 584.38 | F7: 0 | G7: SIAD-FAB-004
B8: GRAFICA DIGITALE | C8: Plotter da taglio di noto brand internazionale per materiale vinilico, PVC e materiale termotrasferibile. Luce di taglio 16 cm e larghezza area fino a 21,5 cm. Connettività USB, rilevatore crocino di stampa manuale integrato per abbinamento a stampante laser. Garanzia 3 anni del produttore | D8: 0 | E8: =699*1.22 -> 852.78 | F8: 0 | G8: SIAD-FAB-005
B9: TORNI PER CERAMICA | C9: Tornio elettrico con seggiolino – diametro girello 290 mm. – diametro interno catino 410 mm. – ampia antina reclinabile porta attrezzi in legno – seggiolino regolabile in altezza fissato al corpo del tornio. | D9: 0 | E9: =1440*1.22 -> 1756.8 | F9: =D9*E9 -> 0 | G9: SIAD-FAB-007
B10: TORNI PER CERAMICA | C10: Torniello da banco per decorazione costruito in acciaio verniciato con piano stampato girevole su sfera, deve permettere un’ottima stabilità sia in fase di decorazione di oggetti, sia nel caso si impieghi il torniello nella modellazione dell’argilla. | D10: 0 | E10: =166*1.22 -> 202.52 | F10: 0 | G10: SIAD-FAB-008
C11: Banco da lavoro con piano superiore in marmo - dimensioni mm. 2000x900 spessore mm. 30 con struttura in acciaio verniciato. | D11: 0 | E11: =1276*1.22 -> 1556.72 | F11: 0 | G11: SIAD-FAB-009
B12: LAVORAZIONE CERAMICA | C12: Starter pack per lavorazione ceramica composto da: 8 attrezzi per la modellazione dell’argilla (n. 1 cavetto taglia argilla con manici legno, n. 1 stecca in legno, n. 1 raschietto in acciaio, n. 1 miretta, n. 1 attrezzo per torniante, n. 1 raschietto in legno, n. 1 rifinitore, n. 1 spugnetta=, due pacchi di argilla per modellazione da 25 Kg cadauno (colore bianco e rosso), un kit di 10 pennelli in pelo di bue e nr. 2 vasetti da 200ml di smalto per le attività di decorazione. | D12: 0 | E12: =234*1.22 -> 285.48 | F12: 0 | G12: SIAD-FAB-010
B13: BANCHI LAVORAZIONE LEGNO | C13: Banco da lavoro per bambini. In legno di faggio. Lunghezza piano di lavoro esclusa morsa laterale 870 mm. Lunghezza piano di lavoro inclusa morsa laterale e testa della vite 1000 mm. Larghezza piano di lavoro esclusa morsa frontale 360 mm. Larghezza piano di lavoro inclusa morsa frontale e testa della vite 490 mm. Spessore piano 27 mm. Spessore piano cani 70 mm. Altezza faccia superiore piano (altezza di lavoro) 660 e 860 mm. Larghezza massima fissaggio morsa laterale 120 mm. Larghezza massima fissaggio morsa frontale 120 mm | D13: 0 | E13: =384*1.22 -> 468.48 | F13: 0 | G13: SIAD-FAB-001
B14: ATTREZZI LAVORAZIONE LEGNO | C14: Set attrezzi per lavorazione del legno, adatto all'utilizzo da parte dei ragazzi. Composto da: Archetto da traforo per bambini, Mini Kataba specifica per tagli traverso, Martello da mobiliere,Mazzuolo in ottone, Trapano ad ingranaggi, Set 4 succhielli da 2,3,4 e 5 mm, Livella in alluminio, Pialla da sgrosso piccola senza rompitruciolo, Set di 4 scalpelli corti, coltellino da intaglio, Set di 8 occhiali protettivi per ragazzi | D14: 0 | E14: =420*1.22 -> 512.4 | F14: 0 | G14: SIAD-FAB-002
B15: MINICUCINA MOBILE | C15: Minicucina completa trasportabile. Minicucina completa trasportabile. Dim. L120xP64xH94 in modalità chiusa. Struttura in multistrato bilaminato.Piani di lavoro scorrevoli (con blocco di sicurezza in modalità aperta) in acciaio inox 18/10. Top in acciaio inox 18/10.Lavello a una vasca in acciaio inox 18/10. Rubunetto richiudibile a ribalta. Impianto idrico con carico/scarico acqua e pompa elettrica con autonomia 12Lt. Piano cottura ad induzione due fuochi. Forno elettrico ventilato con funzione a vapore, pirolitico, funzione pizza e 9 funzioni cottura. Cestello portastoviglie in acciaio da 60 cm.Cassetto portaposate. N.4 ruote da 10 CM con rivestimento in gomma e blocco. Impianto elettrico con interruttore magnetotermico di protezione. | D15: 0 | E15: =6728*1.22 -> 8208.16 | F15: 0 | G15: SIAD-MOBI-004
B16: ATTREZZI PER LAVORAZIONI CUCINA | C16: Kti completo di strumenti e attrezzature per la cucina mobile. Composto da: Set pentole 10 pezzi per induzione, set 6 utensili di acciaio inossidabile solido, silicone senza BPA e resistente al calore fino a 200℃, set 6 coltelli rivestiti in ceramica, set 3 setacci in acciaio a maglia fine, servizio posate da 16 pezzi in acciaio, servizio piatti in porcellana bianco da 18 pezzi, Robot multifunzione 750W da 1,2 litri di capacità, Set di 6 contenitori di plastica con meccanismo di chiusura a 4 punti e guarnizioni in silicone | D16: 0 | E16: =658*1.22 -> 802.76 | F16: 0 | G16: SIAD-FAB-006
C19: TOTALE ARTE E CREATIVITA' IVA INCLUSA | F19: =SUM(F6:F18) -> 0
